bitfinex/quotes_BTCUSD_20260110
["timestamp","ask_amount","ask_price","bid_price","bid_amount"]
[1768052710096,0.01102207,90727.0,90714.0,0.05628954]
[1768052710551,0.02208,90728.0,90714.0,0.05628954]
[1768052711315,0.02208,90728.0,90715.0,0.01102353]
[1768052712091,0.02208,90728.0,90716.0,0.01102341]
[1768052713045,0.02208,90728.0,90717.0,0.01102329]
[1768052713456,0.02208,90728.0,90716.0,0.01102341]
[1768052714555,0.02208,90728.0,90715.0,0.01102353]
[1768052715360,0.03310195,90728.0,90715.0,0.01102353]
[1768052715567,0.02208,90728.0,90715.0,0.01102353]
[1768052716043,0.03310195,90728.0,90715.0,0.01102353]
[1768052716257,0.02208,90728.0,90715.0,0.01102353]
[1768052716971,0.03310195,90728.0,90715.0,0.01102353]
[1768052717127,0.03310195,90728.0,90714.0,0.05628954]
[1768052717489,0.03310195,90728.0,90715.0,0.01102353]
[1768052717689,0.03310195,90728.0,90714.0,0.05628954]
[1768052718196,0.03310195,90728.0,90715.0,0.01102353]
[1768052718373,0.02208,90728.0,90715.0,0.01102353]
[1768052719001,0.03310195,90728.0,90714.0,0.04526589]
[1768052719180,0.03310195,90728.0,90714.0,0.05628954]
[1768052720093,0.01102207,90727.0,90714.0,0.05628954]
[1768052720472,0.03310195,90728.0,90714.0,0.05628954]
[1768052721490,0.02208,90728.0,90715.0,0.01102353]
[1768052723758,0.03310195,90728.0,90714.0,0.05628954]
[1768052724146,0.03310195,90728.0,90715.0,0.01102353]
[1768052724349,0.02208,90728.0,90715.0,0.01102353]
[1768052725409,0.02208,90728.0,90717.0,0.01102329]
[1768052725983,0.02208,90728.0,90716.0,0.01102341]
[1768052726191,0.02208,90728.0,90715.0,0.01102353]
[1768052726393,0.02208,90728.0,90716.0,0.01102341]
[1768052727151,0.02208,90728.0,90715.0,0.01102353]
[1768052727877,0.02208,90728.0,90716.0,0.01102341]
[1768052729058,0.02208,90728.0,90715.0,0.01102353]
[1768052729850,0.02208,90728.0,90716.0,0.01102341]
[1768052730543,0.02208,90728.0,90715.0,0.01102353]
[1768052730764,0.02208,90728.0,90716.0,0.01102341]
[1768052731477,0.02208,90728.0,90717.0,0.01102329]
[1768052732431,0.02208,90728.0,90716.0,0.01102341]
[1768052732568,0.02208,90728.0,90717.0,0.01102329]
[1768052734878,0.02208,90728.0,90716.0,0.01102341]
[1768052735077,0.02208,90728.0,90717.0,0.01102329]
[1768052735845,0.02208,90728.0,90718.0,0.01102317]
[1768052736322,0.02208,90728.0,90717.0,0.01102329]
[1768052738394,0.02208,90728.0,90718.0,0.01102317]
[1768052738716,0.02208,90728.0,90717.0,0.01102329]
[1768052738925,0.02208,90728.0,90718.0,0.01102317]
[1768052739550,0.02208,90728.0,90720.0,0.01102292]
[1768052739836,0.02208,90728.0,90719.0,0.01102304]
[1768052740026,0.02208,90728.0,90720.0,0.01102292]
[1768052740574,0.02208,90728.0,90719.0,0.01102304]
[1768052741222,0.02208,90728.0,90720.0,0.01102292]
[1768052741419,0.02208,90728.0,90717.0,0.01102329]
[1768052742244,0.02208,90728.0,90719.0,0.01102304]
[1768052742442,0.02208,90728.0,90720.0,0.01102292]
[1768052742647,0.02208,90728.0,90718.0,0.01102317]
[1768052744326,0.02208,90728.0,90719.0,0.01102304]
[1768052744766,0.01102146,90732.0,90718.0,0.01102317]
[1768052744767,0.02208,90733.0,90728.0,0.00103964]
[1768052745160,0.02208,90733.0,90728.0,4.064e-05]
[1768052745484,0.02208,90733.0,90722.0,0.04607716]
[1768052745681,0.01102122,90734.0,90722.0,0.04607716]
[1768052745901,0.0111708,90735.0,90722.0,0.04607716]
[1768052746316,0.01102122,90734.0,90722.0,0.04607716]
[1768052748079,0.01102159,90731.0,90720.0,0.02208]
[1768052750776,0.01102146,90732.0,90720.0,0.02208]
[1768052750980,0.01102159,90731.0,90720.0,0.02208]
[1768052761531,0.01102171,90730.0,90720.0,0.02208]
[1768052761941,0.01102183,90729.0,90720.0,0.02208]
[1768052762143,0.01102171,90730.0,90720.0,0.02208]
[1768052762349,0.01102183,90729.0,90720.0,0.02208]
[1768052762551,0.01102171,90730.0,90720.0,0.02208]
[1768052763161,0.01102183,90729.0,90720.0,0.02208]
[1768052764188,0.01102171,90730.0,90720.0,0.02208]
[1768052764845,0.01102159,90731.0,90720.0,0.02208]
[1768052765051,0.05510914,90730.0,90720.0,0.02208]
[1768052765637,0.06612959,90731.0,90720.0,0.02208]
[1768052766265,0.01102183,90729.0,90720.0,0.02208]
[1768052766484,0.01102171,90730.0,90720.0,0.02208]
[1768052766698,0.01102183,90729.0,90720.0,0.02208]
[1768052767536,0.01102207,90727.0,90720.0,0.02208]
[1768052768120,0.01102195,90728.0,90720.0,0.02208]
[1768052772267,0.01102159,90731.0,90720.0,0.02208]
[1768052772665,0.01102171,90730.0,90720.0,0.02208]
[1768052773582,0.01102183,90729.0,90720.0,0.02208]
[1768052774291,0.01102195,90728.0,90720.0,0.02208]
[1768052774680,0.01102183,90729.0,90720.0,0.02208]
[1768052775841,0.01102195,90728.0,90720.0,0.02208]
[1768052779091,0.01102207,90727.0,90717.0,0.04607716]
[1768052779389,0.01102195,90728.0,90717.0,0.06815716]
[1768052780875,0.01102171,90730.0,90717.0,0.06815716]
[1768052781477,0.01102171,90730.0,90717.0,0.07918045]
[1768052781682,0.01102171,90730.0,90717.0,0.06815716]
[1768052782405,0.01102171,90730.0,90717.0,0.07918045]
[1768052782615,0.01102146,90732.0,90717.0,0.07918045]
[1768052782813,0.01102171,90730.0,90717.0,0.06815716]
[1768052783044,0.01102159,90731.0,90717.0,0.07918045]
[1768052783468,0.01102159,90731.0,90718.0,0.01102317]
[1768052783666,0.01102171,90730.0,90717.0,0.06815716]
[1768052784026,0.01102183,90729.0,90717.0,0.06815716]
[1768052787871,0.01102195,90728.0,90717.0,0.06815716]
[1768052788067,0.01102183,90729.0,90717.0,0.06815716]
[1768052793661,0.01102207,90727.0,90717.0,0.06815716]
[1768052793875,0.01102195,90728.0,90717.0,0.06815716]
[1768052794084,0.01102207,90727.0,90717.0,0.06815716]
[1768052795303,0.01102195,90728.0,90717.0,0.06815716]
[1768052800137,0.01102207,90727.0,90717.0,0.06815716]
[1768052800722,0.01102195,90728.0,90717.0,0.06815716]
[1768052801695,0.01102207,90727.0,90717.0,0.06815716]
[1768052801900,0.01102183,90729.0,90717.0,0.06815716]
[1768052804884,0.01102219,90726.0,90717.0,0.02208]
[1768052805097,0.01102244,90724.0,90717.0,0.02208]
[1768052805515,0.01102256,90723.0,90717.0,0.02208]
[1768052808092,0.01102244,90724.0,90717.0,0.02208]
[1768052809622,2.4e-07,90716.0,90713.0,0.02208]
[1768052809820,0.01102329,90717.0,90709.0,0.00052119]
[1768052810036,0.01102341,90716.0,90709.0,0.05568217]
[1768052810236,0.01102341,90716.0,90709.0,0.02260119]
[1768052810454,0.01102329,90717.0,90709.0,0.02260119]
[1768052810680,0.02207999,90718.0,90709.0,0.02260119]
[1768052811086,0.01102329,90717.0,90709.0,0.02260119]
[1768052811636,0.04936644,90715.0,90709.0,0.02260119]
[1768052812202,0.04936644,90715.0,90709.0,0.02256055]
[1768052812766,0.01102377,90713.0,90706.0,0.03308229]
[1768052813007,0.04936644,90714.0,90713.0,0.00066145]
[1768052813490,0.04936644,90714.0,90704.0,0.02208]
[1768052813491,0.01039537,90713.0,90704.0,0.02208]
[1768052814333,0.01039537,90713.0,90704.0,0.05511823]
[1768052815351,0.02141914,90713.0,90704.0,0.05511823]
[1768052817566,0.01039537,90713.0,90704.0,0.05511823]
[1768052817992,0.02141914,90713.0,90704.0,0.05511823]
[1768052818316,0.01102389,90712.0,90704.0,0.05511823]
[1768052818511,0.02141914,90713.0,90704.0,0.05511823]
[1768052819264,0.01102414,90710.0,90698.0,0.04972565]
[1768052819473,0.01102438,90708.0,90702.0,0.02208]
[1768052819682,0.01102426,90709.0,90702.0,0.02208]
[1768052819991,0.01102414,90710.0,90702.0,0.02208]
[1768052820207,0.01102426,90709.0,90702.0,0.02208]
[1768052820372,0.06039082,90708.0,90702.0,0.02208]
[1768052820573,0.04936644,90708.0,90702.0,0.02208]
[1768052821370,0.06039082,90708.0,90702.0,0.02208]
[1768052821568,0.04936644,90706.0,90702.0,0.02208]
[1768052824360,0.01039536,90705.0,90702.0,0.02208]
[1768052825121,0.00969257,90705.0,90702.0,0.02208]
[1768052825935,0.00898979,90705.0,90702.0,0.02208]
[1768052826961,0.00828702,90705.0,90702.0,0.02208]
[1768052827923,0.00758426,90705.0,90702.0,0.02208]
[1768052828846,0.00688151,90705.0,90702.0,0.02208]
[1768052829998,0.00617877,90705.0,90702.0,0.02208]
[1768052830619,0.00547604,90705.0,90702.0,0.02208]
[1768052831465,0.00447704,90705.0,90702.0,0.02208]
[1768052831676,0.00377432,90705.0,90702.0,0.02208]
[1768052833468,0.00307161,90705.0,90702.0,0.02208]
[1768052834228,0.00236891,90705.0,90702.0,0.02208]
[1768052835260,0.00166622,90705.0,90702.0,0.02208]
[1768052836398,0.00096354,90705.0,90702.0,0.02208]
[1768052837235,0.00026087,90705.0,90702.0,0.02208]
[1768052838122,0.01102414,90710.0,90702.0,0.02208]
[1768052840422,0.05759618,90711.0,90702.0,0.02208]
[1768052840644,0.01102414,90710.0,90702.0,0.02208]
[1768052841268,0.05759618,90711.0,90702.0,0.02208]
[1768052843351,0.01102414,90710.0,90702.0,0.02208]
[1768052844394,0.01102426,90709.0,90702.0,0.02208]
[1768052844607,0.01102414,90710.0,90702.0,0.02208]
[1768052846290,0.01102426,90709.0,90702.0,0.02208]
[1768052846892,0.01102414,90710.0,90702.0,0.02208]
[1768052854385,0.05759618,90711.0,90702.0,0.02208]
[1768052855689,0.01102414,90710.0,90702.0,0.02208]
[1768052857570,0.05759618,90711.0,90702.0,0.02208]
[1768052858220,0.04657216,90711.0,90702.0,0.02208]
[1768052858432,0.05759618,90711.0,90702.0,0.02208]
[1768052858845,0.04657216,90711.0,90702.0,0.02208]
[1768052859351,0.05759618,90711.0,90702.0,0.02208]
[1768052859597,0.04657216,90711.0,90702.0,0.02208]
[1768052860228,0.03310353,90715.0,90702.0,0.02208]
[1768052860408,0.01102365,90714.0,90702.0,0.02208]
[1768052861472,0.03310353,90715.0,90702.0,0.02208]
[1768052861684,0.03310353,90715.0,90700.0,0.02204973]
[1768052861685,0.01102426,90709.0,90700.0,0.01102438]
[1768052861894,0.01102426,90709.0,90698.0,0.0001395]
[1768052862099,0.0110245,90707.0,90698.0,0.0001395]
[1768052862305,0.01102462,90706.0,90698.0,0.0001395]
[1768052862510,0.0110245,90707.0,90698.0,0.0001395]
[1768052862910,0.01102438,90708.0,90698.0,0.0001395]
[1768052863172,0.0110245,90707.0,90698.0,0.0001395]
[1768052863782,0.01102438,90708.0,90698.0,0.0001395]
[1768052864793,0.0110245,90707.0,90698.0,0.0001395]
[1768052865486,0.01102438,90708.0,90698.0,0.0001395]
[1768052869076,0.01102426,90709.0,90698.0,0.0001395]
[1768052869276,0.0110245,90707.0,90698.0,0.0001395]
[1768052869492,0.01102438,90708.0,90698.0,0.0001395]
[1768052871503,0.0110245,90707.0,90698.0,0.0001395]
[1768052874333,0.01102438,90708.0,90698.0,0.0001395]
[1768052874754,0.0110245,90707.0,90698.0,0.0001395]
[1768052875543,0.01102438,90708.0,90698.0,0.011164]
[1768052877838,0.01102426,90709.0,90698.0,0.011164]
[1768052878043,0.01102438,90708.0,90698.0,0.011164]
[1768052878240,0.0110245,90707.0,90698.0,0.011164]
[1768052878695,0.01102438,90708.0,90698.0,0.011164]
[1768052880549,4.263e-05,90708.0,90698.0,0.011164]
[1768052882785,0.04976265,90708.0,90698.0,0.011164]
[1768052883038,0.04972002,90706.0,90698.0,0.011164]
[1768052885199,0.04972002,90706.0,90698.0,0.0221896]
[1768052885406,4.263e-05,90708.0,90698.0,0.011164]
[1768052885682,4.263e-05,90708.0,90698.0,0.0221896]
[1768052886480,4.263e-05,90708.0,90698.0,0.011164]
[1768052889981,4.263e-05,90708.0,90698.0,0.0221896]
[1768052892666,4.263e-05,90708.0,90698.0,0.011164]
[1768052893170,4.263e-05,90708.0,90698.0,0.0221896]
[1768052894157,4.263e-05,90708.0,90698.0,0.011164]
[1768052894981,4.263e-05,90708.0,90698.0,0.0221896]
[1768052895388,4.263e-05,90708.0,90698.0,0.011164]
[1768052897465,4.263e-05,90708.0,90698.0,0.0221896]
[1768052904921,4.263e-05,90708.0,90699.0,0.01102547]
[1768052908017,4.263e-05,90708.0,90698.0,0.0221896]
[1768052909277,4.263e-05,90708.0,90699.0,0.01102547]
[1768052909887,4.263e-05,90708.0,90698.0,0.0221896]
[1768052911931,4.263e-05,90708.0,90699.0,0.01102547]
[1768052916697,4.263e-05,90708.0,90700.0,0.01102535]
[1768052917143,0.04790307,90708.0,90698.0,0.011164]
[1768052917343,0.04790307,90708.0,90698.0,0.0001395]
[1768052918214,0.04790307,90708.0,90698.0,0.0111651]
[1768052924589,0.04790307,90708.0,90698.0,0.0001395]
[1768052924785,0.04790307,90708.0,90698.0,0.0111651]
[1768052925129,0.04790307,90708.0,90698.0,0.0001395]
[1768052925712,0.04790307,90708.0,90698.0,0.0111651]
[1768052925942,0.04790307,90708.0,90698.0,0.0001395]
[1768052928786,0.04790307,90708.0,90698.0,0.0111651]
[1768052930510,0.04790307,90708.0,90699.0,0.01102547]
[1768052931602,0.04790307,90708.0,90700.0,0.01102535]
[1768052931802,0.04790307,90708.0,90699.0,0.01102547]
[1768052932182,0.04790307,90708.0,90698.0,0.0001395]
[1768052933249,0.04790307,90708.0,90698.0,0.0111651]
[1768052933700,0.04790307,90708.0,90698.0,0.0001395]
[1768052940011,0.05892745,90708.0,90698.0,0.0001395]
[1768052940887,0.04790307,90708.0,90698.0,0.0001395]
[1768052941049,0.05892745,90708.0,90698.0,0.0001395]
[1768052941630,0.04790307,90708.0,90698.0,0.0001395]
[1768052943126,0.05892745,90708.0,90698.0,0.0001395]
[1768052943345,0.01102462,90706.0,90698.0,0.0001395]
[1768052943668,0.0110245,90707.0,90698.0,0.0001395]
[1768052944679,0.05632974,90707.0,90698.0,0.0001395]
[1768052946862,0.01102462,90706.0,90698.0,0.0001395]
[1768052947858,0.04530524,90707.0,90698.0,0.0001395]
[1768052948259,0.05632974,90707.0,90698.0,0.0001395]
[1768052949670,0.01102462,90706.0,90698.0,0.0001395]
[1768052950304,0.05632974,90707.0,90698.0,0.0001395]
[1768052950509,0.01102462,90706.0,90698.0,0.0001395]
[1768052951356,0.05632974,90707.0,90698.0,0.0001395]
[1768052952596,0.01102462,90706.0,90698.0,0.0001395]
[1768052954437,0.01102475,90705.0,90698.0,0.0001395]
[1768052955767,0.01102462,90706.0,90698.0,0.0001395]
[1768052955971,0.01102475,90705.0,90698.0,0.0001395]
[1768052959463,0.01102462,90706.0,90698.0,0.0001395]
[1768052981437,0.01102475,90705.0,90698.0,0.0001395]
[1768052984758,0.01102462,90706.0,90698.0,0.0001395]
[1768052985772,0.01102475,90705.0,90698.0,0.0001395]
[1768052986516,0.01102462,90706.0,90698.0,0.0001395]
[1768052986716,0.01102475,90705.0,90698.0,0.0001395]
[1768052987159,0.01102487,90704.0,90698.0,0.0001395]
[1768052987361,0.01102475,90705.0,90698.0,0.0001395]
[1768052987556,0.01102487,90704.0,90698.0,0.0001395]
[1768052987732,0.01102475,90705.0,90698.0,0.0001395]
[1768052988350,0.01102462,90706.0,90698.0,0.0001395]
[1768052988577,0.01102475,90705.0,90698.0,0.0001395]
[1768052989754,0.01102462,90706.0,90698.0,0.0001395]
[1768052989957,0.0110245,90707.0,90698.0,0.0001395]
[1768052990159,0.01106701,90708.0,90698.0,0.0001395]
[1768052990568,0.0110245,90707.0,90698.0,0.0001395]
[1768052991564,0.01106701,90708.0,90698.0,0.0001395]
[1768052991787,4.263e-05,90708.0,90698.0,0.0001395]
[1768052991992,0.01106701,90708.0,90698.0,0.0001395]
[1768052992530,0.0110245,90707.0,90698.0,0.0001395]
[1768052994334,0.01106701,90708.0,90698.0,0.0001395]
[1768052997247,0.0110245,90707.0,90698.0,0.0001395]
[1768052998823,0.00989965,90707.0,90698.0,0.0001395]
[1768052999806,0.01106701,90708.0,90698.0,0.0001395]
[1768053000190,4.263e-05,90708.0,90698.0,0.0001395]
[1768053000381,0.01106701,90708.0,90698.0,0.0001395]
[1768053001188,0.0110245,90707.0,90698.0,0.0001395]
[1768053001408,0.01106701,90708.0,90698.0,0.0001395]
[1768053002321,0.0110245,90707.0,90698.0,0.0001395]
[1768053003249,0.01102475,90705.0,90698.0,0.0001395]
[1768053003449,0.01102462,90706.0,90698.0,0.0001395]
[1768053007375,0.01102475,90705.0,90698.0,0.0001395]
[1768053007576,0.01102462,90706.0,90698.0,0.0001395]
[1768053008363,0.06614782,90706.0,90698.0,0.0001395]
[1768053009089,0.01102487,90704.0,90698.0,0.0001395]
[1768053010371,0.01102499,90703.0,90698.0,0.0001395]
[1768053010784,0.01102487,90704.0,90698.0,0.0001395]
[1768053013834,0.06614962,90704.0,90698.0,0.0001395]
[1768053014083,0.01102511,90702.0,90698.0,0.0001395]
[1768053014919,0.01038858,90702.0,90698.0,0.0001395]
[1768053015912,0.01102499,90703.0,90702.0,0.00063652]
[1768053016135,0.10226115,90699.0,90698.0,1e-08]
[1768053016331,0.01102584,90696.0,90689.0,0.0001509]
[1768053016540,0.01102572,90697.0,90689.0,0.0001509]
[1768053017176,0.01102584,90696.0,90689.0,0.0001509]
[1768053018562,0.01102572,90697.0,90689.0,0.0001509]
[1768053020257,0.01102584,90696.0,90689.0,0.0001509]
[1768053025060,0.01102572,90697.0,90689.0,0.0001509]
[1768053028514,0.01102547,90699.0,90689.0,0.0001509]
[1768053028719,0.0110256,90698.0,90689.0,0.0001509]
[1768053028922,0.01102547,90699.0,90689.0,0.0001509]
[1768053029343,0.0110256,90698.0,90689.0,0.0001509]
[1768053029517,0.01102547,90699.0,90689.0,0.0001509]
[1768053034471,0.0110256,90698.0,90689.0,0.0001509]
[1768053035090,0.01102572,90697.0,90689.0,0.0001509]
[1768053035636,0.04593159,90694.0,90689.0,9e-07]
[1768053035848,0.05695767,90694.0,90689.0,9e-07]
[1768053036495,0.04593159,90694.0,90689.0,9e-07]
[1768053036727,0.01102572,90697.0,90689.0,9e-07]
[1768053036897,0.01102584,90696.0,90689.0,9e-07]
[1768053037722,0.01102572,90697.0,90689.0,9e-07]
[1768053038950,0.01102584,90696.0,90689.0,9e-07]
[1768053039382,0.01102572,90697.0,90689.0,9e-07]
[1768053041360,0.01102584,90696.0,90689.0,9e-07]
[1768053041768,0.01102572,90697.0,90689.0,9e-07]
[1768053043281,0.0110256,90698.0,90689.0,9e-07]
[1768053046614,0.05695706,90699.0,90689.0,9e-07]
[1768053046812,0.0110256,90698.0,90689.0,9e-07]
[1768053047418,0.04593159,90697.0,90689.0,9e-07]
[1768053047617,0.05695731,90697.0,90689.0,9e-07]
[1768053048993,0.01102584,90696.0,90689.0,9e-07]
[1768053049394,0.01102596,90695.0,90689.0,9e-07]
[1768053049667,0.01102584,90696.0,90689.0,9e-07]
[1768053052770,0.01102572,90697.0,90689.0,9e-07]
[1768053053174,0.0110256,90698.0,90689.0,9e-07]
[1768053053582,0.01102572,90697.0,90689.0,9e-07]
[1768053054190,0.01102584,90696.0,90689.0,9e-07]
[1768053054520,0.01102572,90697.0,90689.0,9e-07]
[1768053054718,0.01102584,90696.0,90689.0,9e-07]
[1768053055092,0.01102572,90697.0,90689.0,9e-07]
[1768053056602,0.0110256,90698.0,90689.0,9e-07]
[1768053056962,0.01102572,90697.0,90689.0,9e-07]
[1768053059168,0.0110256,90698.0,90689.0,9e-07]
[1768053059639,0.01102572,90697.0,90689.0,9e-07]
[1768053060048,0.01102584,90696.0,90689.0,9e-07]
[1768053061894,0.01102596,90695.0,90689.0,9e-07]
[1768053062301,0.01102584,90696.0,90689.0,9e-07]
[1768053062501,0.04538156,90692.0,90689.0,9e-07]
[1768053062704,0.05640789,90692.0,90689.0,9e-07]
[1768053063626,0.04985783,90691.0,90689.0,9e-07]
[1768053065873,0.04985783,90691.0,90688.0,0.02]
[1768053065874,0.04985783,90690.0,90688.0,0.02]
[1768053066088,0.04590652,90690.0,90688.0,0.019151]
[1768053066250,0.04484729,90690.0,90688.0,0.019151]
[1768053071977,0.1049913,90689.0,90688.0,0.019151]
[1768053078374,0.1049913,90689.0,90688.0,1e-08]
[1768053078573,0.01102742,90683.0,90680.0,0.0001509]
[1768053078777,0.05513608,90685.0,90680.0,0.0001509]
[1768053078778,0.0110273,90684.0,90680.0,0.0001509]
[1768053078941,0.01102742,90683.0,90680.0,0.0001509]
[1768053079551,0.0110273,90684.0,90680.0,0.0001509]
[1768053080058,0.06088501,90685.0,90680.0,0.0001509]
[1768053080441,0.0110273,90684.0,90680.0,0.0001509]
[1768053081630,0.01102742,90683.0,90680.0,0.0001509]
[1768053082132,0.0110273,90684.0,90680.0,0.0001509]
[1768053083002,0.06088501,90685.0,90680.0,0.0001509]
[1768053083214,0.0110273,90684.0,90680.0,0.0001509]
[1768053083606,0.06088501,90685.0,90680.0,0.0001509]
[1768053084259,0.0110273,90684.0,90680.0,0.0001509]
[1768053084465,0.05513773,90682.0,90680.0,0.0001509]
[1768053084674,0.05250203,90682.0,90680.0,0.0001509]
[1768053084888,0.05118418,90682.0,90680.0,0.0001509]
[1768053085103,0.05513834,90681.0,90680.0,0.0001509]
[1768053085710,0.11602268,90683.0,90680.0,0.0001509]
[1768053085925,0.10499617,90681.0,90680.0,0.0001509]
[1768053086136,0.04985783,90681.0,90680.0,0.0001509]
[1768053086358,0.06616498,90683.0,90680.0,0.0001509]
[1768053088809,0.01102742,90683.0,90680.0,0.0001509]
[1768053089414,0.06616468,90683.0,90680.0,0.0001509]
[1768053089639,0.05513802,90682.0,90680.0,0.0001509]
[1768053090563,0.05513834,90681.0,90680.0,0.0001509]
[1768053090794,0.04985783,90682.0,90677.0,0.02]
[1768053090795,0.05514016,90678.0,90677.0,0.02]
[1768053090993,0.05514016,90678.0,90677.0,1e-08]
[1768053091198,0.10499799,90678.0,90677.0,1e-08]
[1768053092011,0.10499799,90678.0,90677.0,0.00035162]
[1768053092221,0.10499799,90678.0,90677.0,1e-08]
[1768053095024,0.05514016,90678.0,90677.0,1e-08]
[1768053096461,0.05513956,90679.0,90677.0,1e-08]
[1768053096682,0.01102779,90680.0,90677.0,1e-08]
[1768053096863,0.05513955,90679.0,90677.0,1e-08]
[1768053097754,0.05514016,90678.0,90677.0,1e-08]
[1768053098118,0.01102851,90674.0,90671.0,0.0001509]
[1768053098456,0.01102827,90676.0,90674.0,0.000999]
[1768053098871,0.01102827,90676.0,90671.0,0.00020902]
[1768053100287,0.01102815,90677.0,90671.0,0.00020902]
[1768053100455,0.01102827,90676.0,90671.0,0.00020902]
[1768053102478,0.01102851,90674.0,90671.0,0.00020902]
[1768053102632,0.05512475,90674.0,90671.0,0.00020902]
[1768053102823,0.00713966,90674.0,90671.0,0.00020902]
[1768053103537,0.01102851,90674.0,90671.0,0.00020902]
[1768053103956,0.01102839,90675.0,90671.0,0.00020902]
[1768053104157,0.01102827,90676.0,90671.0,0.00020902]
[1768053104365,0.0587486,90675.0,90671.0,0.00020902]
[1768053104895,0.05874872,90674.0,90671.0,0.00020902]
[1768053105515,0.05789581,90674.0,90671.0,0.00020902]
[1768053105671,0.11133304,90674.0,90671.0,0.00020902]
[1768053106889,0.04772021,90673.0,90671.0,0.00020902]
[1768053107098,0.06361283,90674.0,90671.0,0.00020902]
[1768053107728,0.11133304,90674.0,90671.0,0.00020902]
[1768053107930,0.05618993,90674.0,90671.0,0.00020902]
[1768053109132,0.11133253,90674.0,90671.0,0.00020902]
[1768053109548,0.04772021,90673.0,90671.0,0.00020902]
[1768053109786,0.05514381,90672.0,90671.0,0.00020902]
[1768053109989,0.10286402,90672.0,90671.0,0.00020902]
[1768053110187,0.011029,90670.0,90667.0,0.02]
[1768053110394,0.01104716,90670.0,90667.0,0.02]
[1768053110610,0.06619219,90670.0,90667.0,0.02]
[1768053111649,0.01104716,90670.0,90667.0,0.02]
[1768053112446,0.01102912,90669.0,90662.0,0.0005409]
[1768053112822,5.816e-05,90670.0,90669.0,0.000999]
[1768053113183,5.816e-05,90670.0,90662.0,0.0005409]
[1768053113391,5.816e-05,90670.0,90662.0,0.04589423]
[1768053113998,5.816e-05,90670.0,90662.0,0.04289423]
[1768053114221,0.0111782,90684.0,90670.0,0.04535333]
[1768053114422,0.0001509,90684.0,90672.0,0.05530825]
[1768053114625,0.05999666,90682.0,90672.0,0.05530825]
[1768053114797,0.05999666,90682.0,90670.0,0.011029]
[1768053114798,0.06042514,90684.0,90670.0,0.04912016]
[1768053115212,0.06042514,90684.0,90671.0,0.01102888]
[1768053115410,0.08824178,90687.0,90675.0,0.03809116]
[1768053115411,0.02208,90687.0,90675.0,0.03809116]
[1768053115619,0.0001721,90684.0,90675.0,0.03809116]
[1768053115854,0.0001721,90684.0,90676.0,0.03809116]
[1768053116423,0.0001721,90684.0,90676.0,0.04911943]
[1768053116622,0.0001721,90684.0,90676.0,0.03809116]
[1768053117479,0.0001721,90684.0,90677.0,0.03809116]
[1768053121391,0.0001721,90684.0,90678.0,0.03809116]
[1768053123002,0.0001721,90684.0,90673.0,0.01102864]
[1768053123608,0.0001721,90684.0,90674.0,0.01102851]
[1768053123813,0.0001721,90684.0,90675.0,0.01102839]
[1768053125444,0.0001721,90684.0,90676.0,0.01102827]
[1768053125656,0.0001721,90684.0,90675.0,0.01102839]
[1768053126087,0.0001721,90684.0,90676.0,0.01102827]
[1768053126927,0.0001721,90684.0,90671.0,0.01102888]
[1768053127155,0.0001721,90684.0,90673.0,0.01102864]
[1768053127624,0.0001721,90684.0,90672.0,0.01102876]
[1768053129448,0.0001721,90684.0,90671.0,0.01102888]
[1768053129604,0.0001721,90684.0,90672.0,0.01102876]
[1768053131674,0.0001721,90684.0,90671.0,0.01102888]
[1768053132531,0.0111994,90684.0,90671.0,0.01102888]
[1768053132741,0.0111994,90684.0,90672.0,0.01102876]
[1768053132742,0.0001721,90684.0,90672.0,0.01102876]
[1768053134528,0.0001721,90684.0,90673.0,0.01102864]
[1768053135505,0.0001721,90684.0,90671.0,0.06617306]
[1768053135650,0.0001721,90684.0,90673.0,0.01102864]
[1768053136048,0.0001721,90684.0,90678.0,0.01102803]
[1768053137287,0.0001721,90684.0,90677.0,0.01102815]
[1768053137832,0.0001721,90684.0,90676.0,0.01102827]
[1768053138041,0.0001721,90684.0,90677.0,0.01102815]
[1768053139046,0.0001721,90684.0,90678.0,0.01102803]
[1768053139412,0.0001721,90684.0,90677.0,0.01102815]
[1768053139851,0.0001721,90684.0,90676.0,0.01102827]
[1768053140969,0.0001721,90684.0,90677.0,0.01102815]
[1768053142175,0.0001721,90684.0,90676.0,0.01102827]
[1768053142721,0.0001721,90684.0,90677.0,0.01102815]
[1768053149585,0.0001721,90684.0,90678.0,0.06616784]
[1768053149781,0.06023927,90691.0,90677.0,0.01102815]
[1768053149782,0.03804614,90691.0,90684.0,0.03809116]
[1768053149966,0.0001565,90694.0,90684.0,0.03809116]
[1768053150167,0.0001565,90694.0,90684.0,0.04911846]
[1768053150383,0.0610849,90694.0,90684.0,0.03809116]
[1768053150610,0.0001565,90694.0,90684.0,0.03809116]
[1768053151438,0.0001565,90694.0,90682.0,0.03310754]
[1768053151697,0.0001565,90694.0,90682.0,0.02208]
[1768053151894,0.0001565,90694.0,90682.0,0.03310754]
[1768053152088,0.0001565,90694.0,90682.0,0.02208]
[1768053153092,0.01102645,90691.0,90682.0,0.02208]
[1768053153508,0.01102657,90690.0,90682.0,0.02208]
[1768053154842,0.01102645,90691.0,90682.0,0.02208]
[1768053155251,0.01102633,90692.0,90682.0,0.02208]
[1768053159142,0.0573218,90690.0,90682.0,0.02208]
[1768053159802,0.000999,90682.0,90676.0,0.02208]
[1768053160008,0.04629523,90688.0,90676.0,0.02208]
[1768053160235,0.05732204,90688.0,90676.0,0.02208]
[1768053160421,0.04629523,90688.0,90682.0,0.00063651]
[1768053161036,0.05732204,90688.0,90682.0,5.1e-07]
[1768053161176,0.04629523,90688.0,90682.0,5.1e-07]
[1768053165391,0.05732204,90688.0,90682.0,5.1e-07]
[1768053165815,0.01102693,90687.0,90682.0,5.1e-07]
[1768053166013,0.01102706,90686.0,90682.0,5.1e-07]
[1768053166238,0.05732216,90687.0,90682.0,5.1e-07]
[1768053166439,0.04629523,90687.0,90682.0,5.1e-07]
[1768053166657,0.01102681,90688.0,90682.0,5.1e-07]
[1768053166658,0.04629523,90686.0,90682.0,5.1e-07]
[1768053168898,0.04598942,90686.0,90682.0,5.1e-07]
[1768053169239,0.05701648,90686.0,90682.0,5.1e-07]
[1768053169434,0.01102718,90685.0,90682.0,5.1e-07]
[1768053169632,0.05701648,90686.0,90682.0,5.1e-07]
[1768053169832,0.04598942,90686.0,90682.0,5.1e-07]
[1768053170256,0.05701648,90686.0,90682.0,5.1e-07]
[1768053171314,0.01102718,90685.0,90682.0,5.1e-07]
[1768053171792,0.05701648,90686.0,90682.0,5.1e-07]
[1768053172537,0.04690981,90684.0,90682.0,5.1e-07]
[1768053173298,0.01102718,90685.0,90682.0,5.1e-07]
[1768053174169,0.01137907,90686.0,90682.0,5.1e-07]
[1768053174369,0.01102718,90685.0,90682.0,5.1e-07]
[1768053174927,0.05793699,90685.0,90682.0,5.1e-07]
[1768053176834,0.04690981,90684.0,90682.0,5.1e-07]